bitfinex/quotes_SOLUSD_20230905
["timestamp","ask_amount","ask_price","bid_price","bid_amount"]
[1693887920698,8.095,19.271,19.264,8.097]
[1693887922098,8.094,19.272,19.264,8.097]
[1693887922285,56.81240652,19.271,19.264,8.097]
[1693887922701,55.0,19.271,19.264,8.097]
[1693887931597,63.095,19.271,19.264,8.097]
[1693887932306,55.0,19.271,19.264,8.097]
[1693887943910,63.095,19.271,19.264,8.097]
[1693887944114,27.34,19.27,19.264,8.097]
[1693887944303,55.0,19.269,19.259,26.168]
[1693887944505,8.096,19.268,19.261,8.098]
[1693887944710,55.0,19.267,19.261,8.098]
[1693887945713,55.0,19.268,19.261,8.098]
[1693887947407,55.0,19.269,19.261,8.098]
[1693887953625,63.095,19.269,19.256,15.79398027]
[1693887953813,63.095,19.269,19.255,8.101]
[1693887954122,27.34,19.26,19.239,26.51215637]
[1693887954329,103.9742,19.259,19.246,8.105]
[1693887954509,150.8742,19.259,19.246,8.105]
[1693887954714,95.8742,19.259,19.246,8.105]
[1693887954915,55.0,19.258,19.246,8.105]
[1693887955529,55.0,19.258,19.25,34.284]
[1693887959240,95.8742,19.259,19.25,34.284]
[1693887959439,415.8881882,19.268,19.25,34.284]
[1693887959620,415.8881882,19.268,19.25,61.624]
[1693887959621,1.81240652,19.267,19.25,61.624]
[1693887959934,418.84,19.27,19.255,91.399]
[1693887959935,1.81240652,19.269,19.255,91.399]
[1693887960836,27.34,19.27,19.26,91.378]
[1693887962036,55.0,19.269,19.26,91.378]
[1693887964343,27.34,19.27,19.26,91.378]
[1693887965935,55.0,19.269,19.26,91.378]
[1693887967430,55.0,19.269,19.254,15.49532709]
[1693887967633,55.0,19.269,19.26,91.378]
[1693887970626,55.0,19.269,19.254,15.49532709]
[1693887970829,55.0,19.269,19.26,91.378]
[1693887979947,27.34,19.27,19.255,20.0]
[1693887980140,27.34,19.27,19.26,91.378]
[1693887987052,55.0,19.269,19.26,91.378]
[1693887998562,55.0,19.269,19.26,8.099]
[1693887998751,55.0,19.269,19.254,72.62432709]
[1693887998752,34.1026808,19.268,19.258,8.1]
[1693887998951,55.0,19.267,19.258,8.1]
[1693887999147,89.1026808,19.267,19.253,26.176]
[1693887999453,27.52772177,19.266,19.255,8.101]
[1693887999764,27.34,19.26,19.255,8.101]
[1693888000868,27.34,19.26,19.255,34.276]
[1693888002163,95.2354,19.265,19.255,34.276]
[1693888002465,55.0,19.264,19.255,34.276]
[1693888010165,27.34,19.26,19.255,34.276]
[1693888010362,55.0,19.259,19.255,34.276]
[1693888012566,55.0,19.259,19.255,8.101]
[1693888047197,27.34,19.26,19.255,8.101]
[1693888048587,55.0,19.259,19.255,8.101]
[1693888069023,55.0,19.259,19.255,34.276]
[1693888080823,55.0,19.259,19.254,8.102]
[1693888083022,63.1,19.259,19.254,8.102]
[1693888083829,55.0,19.259,19.254,8.102]
[1693888145260,55.0,19.259,19.253,8.102]
[1693888145578,26.0066808,19.258,19.247,8.104]
[1693888145777,63.101,19.257,19.248,8.104]
[1693888146264,89.1076808,19.257,19.248,8.104]
[1693888148383,89.1076808,19.257,19.247,8.105]
[1693888148974,8.73261211,19.256,19.247,8.105]
[1693888149179,55.0,19.255,19.247,8.105]
[1693888149582,34.1076808,19.257,19.247,8.105]
[1693888149583,55.0,19.256,19.247,8.105]
[1693888150574,63.101,19.256,19.247,8.105]
[1693888152587,55.0,19.256,19.247,8.105]
[1693888153176,63.101,19.256,19.247,8.105]
[1693888153571,63.101,19.256,19.246,8.105]
[1693888153978,63.101,19.256,19.245,8.105]
[1693888154371,89.1076808,19.256,19.244,23.55038669]
[1693888155185,89.1076808,19.256,19.243,8.106]
[1693888155888,8.103,19.252,19.243,8.106]
[1693888156089,55.0,19.251,19.243,8.106]
[1693888156789,55.0,19.252,19.243,8.106]
[1693888160689,55.0,19.253,19.243,8.106]
[1693888163691,98.4259,19.258,19.243,8.106]
[1693888164983,55.0,19.257,19.243,8.106]
[1693888165184,98.4259,19.258,19.243,8.106]
[1693888166897,55.0,19.257,19.243,8.106]
[1693888168193,63.101,19.257,19.243,8.106]
[1693888168501,0.49679995,19.256,19.243,8.106]
[1693888168686,63.101,19.257,19.243,8.106]
[1693888168687,8.102,19.255,19.243,8.106]
[1693888168886,55.0,19.254,19.243,8.106]
[1693888169298,63.102,19.254,19.243,8.106]
[1693888170407,55.0,19.254,19.243,8.106]
[1693888175887,55.0,19.255,19.243,8.106]
[1693888176397,63.101,19.255,19.243,8.106]
[1693888177501,55.0,19.255,19.243,8.106]
[1693888177700,55.0,19.256,19.243,8.106]
[1693888179704,63.101,19.256,19.243,8.106]
[1693888187693,55.0,19.256,19.243,8.106]
[1693888190705,55.0,19.257,19.243,8.106]
[1693888193109,55.0,19.257,19.243,23.69851559]
[1693888196308,63.101,19.257,19.243,23.69851559]
[1693888203220,27.34,19.26,19.243,23.69851559]
[1693888203520,1.8096661,19.265,19.25,194.798]
[1693888203714,94.3314,19.263,19.25,194.798]
[1693888203915,250.33748384,19.266,19.25,194.798]
[1693888204103,1.81240652,19.265,19.25,194.798]
[1693888204310,8.098,19.264,19.25,194.798]
[1693888204510,1.81240652,19.263,19.25,194.798]
[1693888205002,56.81240652,19.263,19.25,194.798]
[1693888205895,55.0,19.262,19.25,194.798]
[1693888206112,1.81240652,19.261,19.25,194.798]
[1693888206318,1.81240652,19.263,19.25,194.798]
[1693888211114,9.91040652,19.263,19.25,91.425]
[1693888211419,268.40048384,19.266,19.25,91.425]
[1693888211420,1.81240652,19.261,19.25,91.425]
[1693888211923,63.099,19.262,19.25,91.425]
[1693888212303,27.34,19.26,19.25,8.103]
[1693888212507,63.1,19.259,19.25,8.103]
[1693888216419,55.0,19.259,19.25,34.284]
[1693888225732,55.0,19.259,19.25,8.103]
[1693888225936,20.0,19.258,19.25,8.103]
[1693888226134,55.0,19.257,19.25,8.103]
[1693888227136,63.101,19.257,19.25,8.103]
[1693888246453,55.0,19.257,19.25,8.103]
[1693888247750,8.1,19.258,19.25,8.103]
[1693888247955,0.6192021,19.259,19.25,35.443]
[1693888248141,96.4346,19.26,19.25,35.443]
[1693888249359,55.0,19.259,19.25,35.443]
[1693888277383,96.4346,19.26,19.25,35.443]
[1693888277987,8.097,19.267,19.25,35.443]
[1693888278191,1.81240652,19.266,19.25,35.443]
[1693888279389,8.097,19.266,19.25,35.443]
[1693888279590,56.81240652,19.265,19.25,35.443]
[1693888280182,1.81240652,19.263,19.25,35.443]
[1693888280390,56.81240652,19.263,19.25,35.443]
[1693888281990,55.0,19.263,19.25,35.443]
[1693888282576,379.31217805,19.268,19.25,35.443]
[1693888282779,539.64270583,19.28,19.26,27.34]
[1693888283079,390.74736545,19.279,19.266,34.257]
[1693888283591,1.81240652,19.277,19.266,34.257]
[1693888283773,1.81240652,19.278,19.266,34.257]
[1693888283973,9.90440652,19.278,19.266,34.257]
[1693888284180,1.81240652,19.278,19.266,34.257]
[1693888284986,9.90440652,19.278,19.266,34.257]
[1693888285183,1.81240652,19.278,19.266,34.257]
[1693888286997,56.81240652,19.278,19.266,34.257]
[1693888288993,64.90440652,19.278,19.266,34.257]
[1693888289198,56.81240652,19.278,19.266,34.257]
[1693888289983,1.81240652,19.278,19.27,27.34]
[1693888290183,8.091,19.28,19.272,8.094]
[1693888290385,1.81240652,19.279,19.272,8.094]
[1693888292600,57.041,19.285,19.272,8.094]
[1693888292601,8.09,19.281,19.272,8.094]
[1693888292804,55.0,19.28,19.272,8.094]
[1693888293104,63.091,19.28,19.272,8.094]
[1693888293602,55.0,19.28,19.272,8.094]
[1693888294002,0.85848471,19.28,19.272,8.094]
[1693888295204,63.091,19.281,19.272,8.094]
[1693888296800,0.69834834,19.28,19.272,8.094]
[1693888298414,8.091,19.28,19.272,8.094]
[1693888298710,55.0,19.279,19.272,8.094]
[1693888302007,55.0,19.28,19.272,8.094]
[1693888302709,63.091,19.28,19.272,8.094]
[1693888303111,0.67983288,19.279,19.272,8.094]
[1693888303408,8.77083288,19.279,19.272,8.094]
[1693888303715,55.0,19.278,19.272,8.094]
[1693888304900,55.0,19.279,19.272,8.094]
[1693888305701,0.58663144,19.278,19.272,8.094]
[1693888306408,55.0,19.279,19.272,8.094]
[1693888306811,0.54288604,19.278,19.272,8.094]
[1693888307118,55.0,19.279,19.272,8.094]
[1693888309717,0.52326048,19.278,19.272,8.094]
[1693888311120,53.3466808,19.29,19.272,8.094]
[1693888311121,8.09,19.281,19.272,8.094]
[1693888312214,8.09,19.282,19.272,8.094]
[1693888312415,55.0,19.281,19.272,8.094]
[1693888313517,63.091,19.281,19.272,8.094]
[1693888318124,27.34,19.28,19.272,8.094]
[1693888318427,55.0,19.279,19.272,8.094]
[1693888320525,92.0276,19.283,19.272,8.094]
[1693888320730,63.09,19.282,19.272,8.094]
[1693888322431,55.0,19.282,19.272,8.094]
[1693888325936,63.09,19.282,19.272,8.094]
[1693888326330,1.0254742,19.281,19.272,8.094]
[1693888328230,55.0,19.282,19.272,8.094]
[1693888328436,1.08046974,19.281,19.272,8.094]
[1693888330435,9.17046974,19.281,19.272,8.094]
[1693888330641,8.09,19.281,19.272,8.094]
[1693888330841,0.54115043,19.28,19.272,8.094]
[1693888331341,8.091,19.28,19.272,8.094]
[1693888331636,63.091,19.28,19.272,8.094]
[1693888331838,8.091,19.28,19.272,8.094]
[1693888332036,55.0,19.279,19.272,8.094]
[1693888337039,55.0,19.28,19.272,8.094]
[1693888337743,0.58777609,19.279,19.272,8.094]
[1693888338039,55.0,19.28,19.272,8.094]
[1693888340243,63.091,19.28,19.272,8.094]
[1693888340945,55.0,19.28,19.272,8.094]
[1693888347748,63.091,19.28,19.272,8.094]
[1693888347950,55.0,19.28,19.272,8.094]
[1693888363360,63.091,19.28,19.272,8.094]
[1693888363663,55.0,19.28,19.272,8.094]
[1693888364666,63.091,19.28,19.272,8.094]
[1693888380770,55.0,19.28,19.272,8.094]
[1693888392677,55.0,19.281,19.272,8.094]
[1693888392974,118.0342808,19.283,19.272,8.094]
[1693888392975,63.09,19.282,19.272,8.094]
[1693888393759,55.0,19.282,19.272,8.094]
[1693888393967,63.09,19.282,19.272,8.094]
[1693888406493,26.0066808,19.281,19.272,8.094]
[1693888406677,8.091,19.279,19.272,8.094]
[1693888406876,55.0,19.278,19.272,8.094]
[1693888407080,63.092,19.278,19.272,8.094]
[1693888407904,55.0,19.278,19.272,8.094]
[1693888410511,92.0276,19.283,19.272,8.094]
[1693888411303,100.1176,19.283,19.272,8.094]
[1693888411910,55.0,19.282,19.272,8.094]
[1693888412797,63.09,19.282,19.272,8.094]
[1693888413409,0.61390985,19.281,19.272,8.094]
[1693888413709,63.09,19.282,19.272,8.094]
[1693888417205,55.0,19.282,19.272,8.094]
[1693888418218,63.09,19.282,19.272,8.094]
[1693888422215,55.0,19.282,19.272,8.094]
[1693888428522,100.1176,19.283,19.272,8.094]
[1693888429116,92.0276,19.283,19.272,8.094]
[1693888430417,92.0276,19.283,19.273,55.0]
[1693888430616,92.0276,19.283,19.276,194.54]
[1693888431126,92.0276,19.283,19.276,91.303]
[1693888433722,8.088,19.287,19.276,91.303]
[1693888433909,55.0,19.286,19.276,91.303]
[1693888434109,63.088,19.286,19.276,91.303]
[1693888435027,8.088,19.286,19.276,91.303]
[1693888439833,8.088,19.287,19.276,91.303]
[1693888454238,8.088,19.287,19.276,34.238]
[1693888454444,55.0,19.286,19.276,8.092]
[1693888454640,8.09,19.283,19.276,8.092]
[1693888460652,55.0,19.282,19.272,8.094]
[1693888460953,55.0,19.282,19.27,84.422]
[1693888460954,8.091,19.279,19.27,27.34]
[1693888461740,8.091,19.279,19.272,8.094]
[1693888463437,8.091,19.28,19.272,8.094]
[1693888463638,26.137,19.283,19.272,8.094]
[1693888463639,8.09,19.281,19.272,8.094]
[1693888463838,55.0,19.28,19.272,8.094]
[1693888464459,63.091,19.28,19.272,8.094]
[1693888465150,55.0,19.28,19.272,8.094]
[1693888467254,63.091,19.28,19.272,8.094]
[1693888469453,55.0,19.28,19.272,8.094]
[1693888470046,55.0,19.281,19.272,8.094]
[1693888471157,63.09,19.281,19.272,8.094]
[1693888474560,55.0,19.281,19.272,8.094]
[1693888477162,55.0,19.282,19.272,8.094]
[1693888484164,63.09,19.282,19.272,8.094]
[1693888486259,55.0,19.282,19.272,8.094]
[1693888486467,63.09,19.283,19.272,8.094]
[1693888511071,146.272,19.283,19.27,8.095]
[1693888511278,0.91969994,19.282,19.271,8.094]
[1693888511478,8.091,19.279,19.271,8.094]
[1693888511678,55.0,19.278,19.271,8.094]
[1693888512369,83.182,19.283,19.271,8.094]
[1693888512370,92.5864,19.284,19.271,65.174]
[1693888512576,55.0,19.283,19.271,65.174]
[1693888530190,55.0,19.283,19.271,80.58478837]
[1693888540803,92.5864,19.284,19.271,80.58478837]
[1693888541006,55.0,19.283,19.271,80.58478837]
[1693888549404,63.09,19.283,19.271,80.58478837]
[1693888550102,63.09,19.283,19.271,65.174]
[1693888555017,89.227,19.283,19.271,65.174]
[1693888555619,63.09,19.283,19.271,65.174]
[1693888567225,55.0,19.283,19.271,65.174]
[1693888567525,55.0,19.283,19.271,80.81507883]
[1693888570526,63.09,19.283,19.271,80.81507883]
[1693888571228,55.0,19.283,19.271,80.81507883]
[1693888573430,63.09,19.283,19.271,80.81507883]
[1693888573732,55.0,19.283,19.271,80.81507883]
[1693888578431,55.0,19.283,19.271,65.174]
[1693888578943,63.09,19.283,19.271,65.174]
[1693888581435,55.0,19.283,19.271,65.174]
[1693888583340,1.47232008,19.282,19.271,65.174]
[1693888589649,1.47232008,19.283,19.271,65.174]
[1693888589946,92.5864,19.284,19.275,194.547]
[1693888590329,1.81240652,19.283,19.275,194.547]
[1693888591158,92.5864,19.284,19.275,194.547]
[1693888591345,1.81240652,19.289,19.276,20.0]
[1693888591535,8.086,19.292,19.28,27.34]
[1693888591536,1.81240652,19.291,19.28,27.34]
[1693888591850,8.086,19.292,19.283,34.225]
[1693888592041,1.81240652,19.291,19.283,34.225]
[1693888592435,9.89840652,19.291,19.283,34.225]
[1693888592748,1.81240652,19.291,19.283,34.225]
[1693888593142,9.89840652,19.291,19.283,34.225]
[1693888593349,55.0,19.29,19.283,34.225]
[1693888593752,1.81240652,19.289,19.283,34.225]
[1693888601964,1.81240652,19.291,19.283,34.225]
[1693888602260,64.89840652,19.292,19.283,34.225]
[1693888602770,56.81240652,19.292,19.283,34.225]
[1693888611274,64.89840652,19.292,19.283,8.089]
[1693888611470,26.0066808,19.291,19.283,8.089]
[1693888611666,64.89940652,19.29,19.283,8.089]
[1693888613074,56.81240652,19.29,19.283,8.089]
[1693888613264,64.89940652,19.29,19.283,8.089]
[1693888613875,56.81240652,19.29,19.283,8.089]
[1693888615269,55.0,19.29,19.283,8.089]
[1693888615682,0.72503039,19.289,19.283,8.089]
[1693888632100,55.0,19.29,19.283,8.089]
[1693888638809,92.5691,19.293,19.283,8.089]
[1693888639008,1.71976375,19.292,19.283,8.089]
[1693888640205,1.81240652,19.294,19.283,8.089]
[1693888640398,1.81240652,19.297,19.283,8.089]
[1693888641197,9.89640652,19.297,19.283,8.089]
[1693888641599,55.0,19.296,19.283,8.089]
[1693888641900,1.81240652,19.295,19.283,8.089]
[1693888642815,9.89740652,19.295,19.283,8.089]
[1693888643011,55.0,19.294,19.283,8.089]
[1693888643210,1.81240652,19.293,19.283,8.089]
[1693888645609,9.89740652,19.293,19.283,8.089]
[1693888650215,55.0,19.292,19.283,8.089]
[1693888650416,8.086,19.291,19.283,8.089]
[1693888657917,55.0,19.29,19.283,8.089]
[1693888658108,8.087,19.289,19.283,8.089]
[1693888658303,55.0,19.288,19.283,8.089]
[1693888659517,1.2266639,19.292,19.283,34.226]
[1693888659722,55.0,19.291,19.283,34.226]
[1693888659919,1.28592785,19.291,19.283,34.226]
[1693888660513,63.086,19.292,19.283,34.226]
[1693888660717,55.0,19.292,19.283,34.226]
[1693888661030,1.28592785,19.291,19.283,34.226]
[1693888661528,55.0,19.292,19.283,34.226]
[1693888661722,1.28592785,19.291,19.283,34.226]
[1693888662021,26.12,19.296,19.283,34.226]
[1693888662022,1.81240652,19.295,19.283,34.226]
[1693888663524,56.81240652,19.295,19.283,34.226]
[1693888664216,64.89740652,19.295,19.283,34.226]
[1693888673544,9.89740652,19.295,19.283,34.226]
[1693888680652,9.89740652,19.295,19.283,8.089]
[1693888680948,8.086,19.291,19.283,8.089]
[1693888681334,55.0,19.29,19.28,27.34]
[1693888681539,63.087,19.29,19.283,8.089]
[1693888682446,55.0,19.29,19.283,8.089]
[1693888684054,95.7771,19.293,19.283,8.089]
[1693888684247,55.0,19.292,19.283,8.089]
[1693888684648,103.8631,19.293,19.283,8.089]
[1693888688764,0.63888796,19.292,19.283,8.089]
[1693888689064,8.72488796,19.292,19.283,8.089]
[1693888689250,8.086,19.292,19.283,8.089]
[1693888692552,55.0,19.291,19.283,8.089]
[1693888692753,8.087,19.29,19.283,8.089]
[1693888693353,55.0,19.291,19.283,8.089]
[1693888693560,8.086,19.291,19.283,8.089]
[1693888693758,55.0,19.29,19.283,8.089]
[1693888696565,63.087,19.29,19.283,8.089]
[1693888700052,63.087,19.29,19.276,77.064]
[1693888700252,63.087,19.29,19.28,8.091]
[1693888700560,63.087,19.29,19.28,35.431]
[1693888708859,0.6796326,19.289,19.28,35.431]
[1693888709059,8.7666326,19.289,19.28,35.431]
[1693888709278,55.0,19.288,19.28,35.431]
[1693888709572,63.087,19.288,19.28,35.431]
[1693888709975,55.0,19.288,19.28,35.431]
[1693888710374,55.0,19.289,19.28,35.431]
[1693888712473,63.087,19.289,19.28,35.431]
[1693888720777,55.0,19.289,19.28,35.431]
[1693888721358,8.086,19.291,19.28,35.431]
[1693888721359,55.0,19.29,19.28,35.431]
[1693888721967,63.087,19.29,19.28,35.431]
[1693888726768,63.087,19.29,19.28,27.34]
[1693888726968,1.37492461,19.289,19.28,35.431]
[1693888727168,8.088,19.287,19.28,35.431]
[1693888727369,55.0,19.286,19.28,35.431]
[1693888727565,63.089,19.286,19.28,35.431]
[1693888735081,55.0,19.286,19.28,35.431]
[1693888737685,55.0,19.287,19.28,35.431]
[1693888746002,95.7771,19.293,19.28,35.431]
[1693888746300,1.42642537,19.292,19.28,35.431]
[1693888746499,95.7771,19.293,19.28,35.431]
[1693888746699,0.66315573,19.292,19.28,35.431]
[1693888747305,55.0,19.292,19.28,35.431]
[1693888749102,0.96088363,19.291,19.28,35.431]
[1693888751194,8.086,19.291,19.28,35.431]
[1693888751394,55.0,19.29,19.28,35.431]
[1693888755704,63.087,19.29,19.28,35.431]
[1693888756210,55.0,19.29,19.28,35.431]
[1693888756809,55.0,19.291,19.28,35.431]
[1693888757404,63.086,19.291,19.28,35.431]
[1693888757617,55.0,19.291,19.28,35.431]
[1693888760405,55.0,19.292,19.28,35.431]
[1693888760701,1.12176589,19.291,19.28,35.431]
[1693888761607,9.20776589,19.291,19.28,35.431]
[1693888761810,55.0,19.29,19.28,35.431]
[1693888761997,63.086,19.292,19.28,35.431]
[1693888762201,0.63577545,19.291,19.28,35.431]
[1693888762412,8.087,19.29,19.28,35.431]
[1693888764340,0.55504447,19.291,19.28,35.431]
[1693888764516,8.64104447,19.291,19.28,35.431]
[1693888764725,55.0,19.29,19.28,35.431]
[1693888765421,63.087,19.29,19.28,35.431]
[1693888766727,55.0,19.29,19.28,35.431]
[1693888768327,8.087,19.289,19.28,35.431]
[1693888770825,63.087,19.29,19.28,35.431]
[1693888776126,55.0,19.29,19.28,35.431]
[1693888779238,63.087,19.29,19.28,35.431]
[1693888789462,63.087,19.29,19.28,8.091]
[1693888789673,0.58354145,19.289,19.279,8.091]
[1693888789853,8.088,19.286,19.279,8.091]
[1693888790055,55.0,19.285,19.279,8.091]
[1693888790256,63.089,19.285,19.279,8.091]
[1693888790756,62.589,19.285,19.278,8.091]
[1693888794760,62.089,19.285,19.278,8.091]
[1693888795174,62.089,19.285,19.277,8.092]
[1693888796372,62.089,19.285,19.276,8.092]
[1693888799473,0.67440417,19.284,19.276,8.092]
[1693888799661,8.09,19.282,19.276,8.092]
[1693888802973,8.09,19.282,19.273,83.32980312]
[1693888803174,55.0,19.281,19.274,8.093]
[1693888803373,8.091,19.279,19.274,8.093]
[1693888812479,8.091,19.279,19.273,8.094]
[1693888813480,55.0,19.278,19.273,8.094]
[1693888813666,63.092,19.278,19.273,8.094]
[1693888823783,8.092,19.278,19.273,8.094]
[1693888824191,8.091,19.279,19.273,8.094]
[1693888824495,55.0,19.278,19.273,8.094]
[1693888825878,8.091,19.28,19.273,8.094]
[1693888825879,55.0,19.279,19.273,8.094]
[1693888827177,55.0,19.28,19.273,8.094]
[1693888829273,55.0,19.28,19.273,65.168]
[1693888833403,8.089,19.285,19.273,65.168]
[1693888833581,55.0,19.284,19.273,65.168]
[1693888833983,55.0,19.285,19.273,65.168]
[1693888835498,8.089,19.285,19.273,65.168]
[1693888835700,55.0,19.284,19.273,65.168]
[1693888836794,54.0,19.284,19.273,65.168]
[1693888838197,62.089,19.284,19.273,65.168]
[1693888846895,62.089,19.284,19.273,8.094]
[1693888880738,103.21348132,19.284,19.273,8.094]
[1693888893546,0.88703076,19.283,19.273,8.094]
[1693888893746,8.091,19.281,19.273,8.094]
[1693888893951,55.0,19.28,19.273,8.094]
[1693888895753,63.091,19.28,19.273,8.094]
[1693888904361,63.091,19.28,19.27,26.153]
[1693888904662,63.091,19.28,19.272,8.094]
[1693888905956,155.4178,19.28,19.272,8.094]
[1693888923072,92.3268,19.28,19.272,8.094]
[1693888923275,332.77552545,19.286,19.272,8.094]
[1693888923478,9.14515681,19.285,19.272,8.094]
[1693888923871,103.71305681,19.285,19.272,8.094]
[1693888924766,95.62405681,19.285,19.272,8.094]
[1693888925283,1.05615681,19.285,19.272,8.094]
[1693888925482,1.05615681,19.285,19.272,34.03281833]
[1693888925776,1.81240652,19.289,19.272,34.03281833]
[1693888926362,9.89940652,19.289,19.272,34.03281833]
[1693888926784,55.0,19.288,19.272,34.03281833]
[1693888927081,1.81240652,19.287,19.272,34.03281833]
[1693888929175,9.90040652,19.287,19.272,34.03281833]
[1693888929392,55.0,19.286,19.272,34.03281833]
[1693888929568,1.81240652,19.285,19.272,34.03281833]
[1693888930583,63.088,19.286,19.272,34.03281833]
[1693888931984,1.81240652,19.285,19.272,34.03281833]
[1693888932283,9.90140652,19.285,19.272,34.03281833]
[1693888932479,8.089,19.285,19.272,34.03281833]
[1693888933274,55.0,19.284,19.272,8.094]
[1693888933475,63.089,19.284,19.272,8.094]
[1693888935280,8.089,19.284,19.272,8.094]
[1693888935484,8.088,19.287,19.272,8.094]
[1693888935785,56.81240652,19.286,19.272,8.094]
[1693888935983,63.088,19.286,19.272,8.094]
[1693888938777,55.0,19.286,19.28,27.34]
[1693888939086,55.0,19.286,19.281,8.09]
[1693888939580,63.088,19.287,19.281,8.09]
[1693888944492,63.088,19.287,19.28,35.431]
[1693888946394,63.088,19.287,19.28,27.34]
[1693888946579,63.088,19.287,19.28,35.431]
[1693888947486,63.088,19.287,19.28,27.34]
[1693888948691,63.088,19.287,19.28,35.431]
[1693888950300,63.088,19.287,19.279,8.091]
[1693888950683,0.50914119,19.286,19.279,8.091]
[1693888950887,8.089,19.284,19.279,8.091]
[1693888966921,57.018,19.292,19.279,8.091]
[1693888967215,1.27161688,19.295,19.284,34.223]
[1693888967705,8.085,19.295,19.284,34.223]
[1693888968099,1.81240652,19.294,19.284,34.223]
[1693888968303,8.086,19.293,19.284,8.089]
[1693888968503,55.0,19.292,19.284,8.089]
[1693888971012,1.00483761,19.292,19.284,8.089]
[1693888972511,63.085,19.293,19.284,8.089]
[1693888972912,55.0,19.293,19.284,8.089]
[1693888973215,0.98496475,19.293,19.284,8.089]
[1693888974620,9.07096475,19.293,19.284,8.089]
[1693888974814,9.07096475,19.293,19.283,8.089]
[1693888975017,55.0,19.292,19.283,8.089]
[1693888975204,8.087,19.29,19.283,8.089]
[1693888975404,55.0,19.289,19.283,8.089]
[1693888975604,63.087,19.289,19.283,8.089]
[1693888975818,63.087,19.289,19.282,8.09]
[1693888977618,55.0,19.289,19.282,8.09]
[1693888977807,55.0,19.29,19.282,8.09]
[1693888978005,63.087,19.29,19.282,8.09]
[1693888979528,55.0,19.29,19.282,8.09]
[1693888979823,63.087,19.29,19.282,8.09]
[1693888980408,55.0,19.29,19.282,8.09]
[1693888980708,55.0,19.291,19.282,8.09]
[1693888982516,8.085,19.293,19.282,8.09]
[1693888982718,1.81240652,19.293,19.282,8.09]
[1693888983529,9.89740652,19.293,19.282,8.09]
[1693888983917,55.0,19.292,19.282,8.09]